Cogmind - Beta 14 @@@ ROGUE MODE // 2024.10.13 @ 21:29:03 Player: WraithDrof Result: Destroyed by S-10 Pest with Light Assault Rifle Performance ------------- Evolutions (0) 0 Regions Visited (4) 800 Robots Destroyed (16) 80 Value Destroyed (426) 426 Prototype IDs (4) 80 Alien Tech Used (0) 0 Bonus (0) 0 TOTAL SCORE: 1386 Bonus ------- None Cogmind --------- Core Integrity 0/250 Matter 279/300 Energy 156/250 System Corruption 1% Temperature Warm (142) Movement Walking (190) Ox1 Location -9/Mines Parts ------- > --- POWER (1) -------- Ion Engine > --- PROPULSION (2) --- Aluminum Leg > --- UTILITY (2) ------ Medium Storage Unit Improved Targeting Computer > --- WEAPON (2) ------- Light EM Pulse Cannon Light Assault Rifle > --- INVENTORY (10) --- Improved Heat Sink High-capacity Battery (250) High-capacity Matter Pod (200) Sensor Array Particle Gun Particle Gun Particle Gun Peak State ------------ > --- POWER ------------ Ion Engine > --- PROPULSION ------- Aluminum Leg Aluminum Leg > --- UTILITY ---------- Medium Storage Unit Signal Interpreter > --- WEAPON ----------- Particle Gun Light EM Pulse Cannon > --- INVENTORY -------- Aluminum Leg Improved Heat Sink High-capacity Matter Pod Sensor Array Improved Targeting Computer Small Laser Particle Gun Particle Gun Light EM Pulse Cannon Light Assault Rifle [Rating: 10] Favorites ----------- Power Light Ion Engine Engine Light Ion Engine Propulsion Aluminum Leg Treads Light Treads Leg Aluminum Leg Wheel Compact Wheel Utility Medium Storage Unit Device Sensor Array Storage Medium Storage Unit Processor Signal Interpreter Weapon Light Assault Rifle Energy Gun Small Laser Energy Cannon Light EM Pulse Cannon Ballistic Gun Light Assault Rifle Build | -11 -10 -10 -10 -9 ------- Run | Yrd Mat Min Exi Min Slots Evolved . | . . . . . Power . | . . . . . Propulsion . | . . . . . Utility . | . . . . . Weapon . | . . . . . Parts Attached 41 | 10 26 2 . 3 Power 5 | 1 3 1 . . Engine 5 | 1 3 1 . . Core . | . . . . . Reactor . | . . . . . Propulsion 18 | 6 11 . . 1 Treads 2 | . 2 . . . Leg 12 | 2 9 . . 1 Wheel 4 | 4 . . . . Hover . | . . . . . Flight . | . . . . . Utility 8 | 1 6 . . 1 Device 2 | . 2 . . . Storage 3 | 1 2 . . . Processor 3 | . 2 . . 1 Hackware . | . . . . . Protection . | . . . . . Artifact . | . . . . . Weapon 10 | 2 6 1 . 1 Energy Gun 3 | 1 2 . . . Energy Cannon 2 | . 1 . . 1 Ballistic Gun 5 | 1 3 1 . . Ballistic Cannon . | . . . . . Launcher . | . . . . . Special Weapon . | . . . . . Impact Weapon . | . . . . . Slashing Weapon . | . . . . . Piercing Weapon . | . . . . . Special Melee Weapon . | . . . . . Unidentified Prototypes . | . . . . . Parts Lost 8 | . 5 . . 3 Power 3 | . 3 . . . Propulsion 2 | . . . . 2 Utility . | . . . . . Weapon 3 | . 2 . . 1 Highest Loss Streak 3 | . 1 . . 3 To Critical Strikes . | . . . . . Average Slot Usage (%) 98 | . 97 100 100 100 Engine 12 | . 12 14 14 14 Leg 26 | . 25 28 28 28 Wheel 1 | . 1 . . . Device 3 | . 5 . . . Storage 13 | . 12 14 14 14 Processor 10 | . 9 14 14 14 Energy Gun 9 | . 13 . . . Energy Cannon 7 | . 4 14 14 14 Ballistic Gun 11 | . 10 14 14 14 Peak Build Rating 10 | 6 10 10 9 10 Average Rating 8 | 4 8 9 9 9 On Entrance 6 | . 6 9 9 9 Naked Turns . | . . . . . Heaviest Build 22 | 12 22 20 20 . Greatest Support 26 | 26 26 20 20 . Greatest Overweight (x) 1 | . 1 . . . Average Overweight (x) . | . . . . . Largest Inventory Capacity 10 | 8 10 10 10 10 Average Capacity 9 | 7 9 10 10 10 Most Carried 10 | 6 10 9 10 10 Average Carried 9 | 4 9 9 9 8 Final Capacity 10 | 8 10 10 10 10 Final Carried 10 | 6 10 9 10 7 Class Distribution -------------------- 100% | Mutant Dominant Class ---------------- Mutant | -10/Materials Mutant | -10/Mines Mutant | -10/Exiles Mutant | -9/Mines Resources | -11 -10 -10 -10 -9 ----------- Run | Yrd Mat Min Exi Min Matter Collected 1053 | 266 683 . 104 . Remotely . | . . . . . Salvage Created 515 | . 480 . . 35 Parts 32 | . 28 . . 4 Haulers Intercepted . | . . . . . Recyclers Shooed . | . . . . . Parts Field Recycled . | . . . . . Retrieved Matter . | . . . . . Parts Self-Destructed . | . . . . . Prevented . | . . . . . Kills | -11 -10 -10 -10 -9 ------- Run | Yrd Mat Min Exi Min Combat Hostiles Destroyed 16 | . 15 . . 1 Guns 14 | . 14 . . . Cannons 1 | . . . . 1 AOE 1 | . 1 . . . Classes Destroyed 2 | . 2 . . . Swarmer 6 | . 6 . . . Grunt 10 | . 9 . . 1 Best Kill Streak 3 | . 3 . . 1 Combat Bots Only 3 | . 3 . . 1 Max Kills in Single Turn 1 | . 1 . . 1 Gunslinging . | . . . . . Exploded 1 | . 1 . . . Melee . | . . . . . Uniques/NPCs Destroyed . | . . . . . Combat | -11 -10 -10 -10 -9 -------- Run | Yrd Mat Min Exi Min Hostile Shots Fired 167 | . 125 . . 42 Missed 48 | . 39 . . 9 Damage Taken 1285 | . 972 . . 313 Core 253 | . 184 . . 69 Absorbed by Shields . | . . . . . Core Remaining (%) 100 | 100 . . . . Volleys Fired 70 | . 66 . . 4 Largest 2 | . 2 . . 2 Hottest 121 | . 121 . . 76 Shots Fired 140 | . 132 . . 8 Gun 135 | . 131 . . 4 Cannon 5 | . 1 . . 4 Launcher . | . . . . . Special . | . . . . . Kinetic 88 | . 84 . . 4 Thermal 29 | . 29 . . . Explosive . | . . . . . Electromagnetic 23 | . 19 . . 4 Robot Hit Streak 16 | . 16 . . 7 Robot Miss Streak 5 | . 5 . . . Penetration Max . | . . . . . Secondary Targets 3 | . 3 . . . Max Gunslinging Chain 1 | . 1 . . . Shots Hit Robots 101 | . 94 . . 7 Core Hits 32 | . 30 . . 2 Critical Kills . | . . . . . Critical Parts Destroyed . | . . . . . Critical Strikes . | . . . . . Melee Attacks . | . . . . . Impact . | . . . . . Slashing . | . . . . . Piercing . | . . . . . Sneak Attacks . | . . . . . Combat Hostiles . | . . . . . Follow-up Attacks . | . . . . . Damage Inflicted 1234 | . 1123 . . 111 Guns 1007 | . 987 . . 20 Cannons 91 | . . . . 91 Explosions 125 | . 125 . . . Melee . | . . . . . Ramming 11 | . 11 . . . Kinetic 636 | . 616 . . 20 Thermal 343 | . 343 . . . Explosive . | . . . . . Electromagnetic 244 | . 153 . . 91 Impact . | . . . . . Slashing . | . . . . . Piercing . | . . . . . Highest Corruption 1 | . 1 1 1 1 Average Corruption 1 | . 1 1 1 1 Corruption Purged . | . . . . . Corruption Blocked . | . . . . . Effects 7 | . 2 1 4 . Message Errors 2 | . 1 . 1 . Matter Fused 3 | . 1 . 2 . Data Loss (minor) 1 | . . 1 . . Data Loss (major) 1 | . . . 1 . Overload Shots . | . . . . . Overflow Damage 4 | . 4 . . . Projectiles . | . . . . . Explosions 4 | . 4 . . . Melee . | . . . . . Knockbacks . | . . . . . Impact . | . . . . . Kinetic . | . . . . . Secondary . | . . . . . Self-Inflicted Damage 41 | . 41 . . . Shots 1 | . 1 . . . Rammed . | . . . . . Targets Rammed 1 | . 1 . . . Kicked 1 | . 1 . . . Crushed . | . . . . . Highest Temperature 142 | . 82 . . 142 Average Temperature 28 | . 24 . . 82 Received Heat Transfer 447 | . 369 . . 78 Siege Activations . | . . . . . Robots Corrupted . | . . . . . Combat Hostiles . | . . . . . Parts Fried . | . . . . . Impact Corruptions . | . . . . . Robots Melted . | . . . . . Combat Hostiles . | . . . . . Parts Melted . | . . . . . Heat Transferred 587 | . 587 . . . Parts Sabotaged . | . . . . . Parts Stolen . | . . . . . Parts Stripped . | . . . . . Power Chain Reactions 2 | . 2 . . . Alert | -11 -10 -10 -10 -9 ------- Run | Yrd Mat Min Exi Min Peak Influence 288 | . 288 54 . 35 Initial 54 | . . 54 . . Average 110 | . 119 54 . 19 Maximum Alert Level 1 | . 1 . . . Low Security (%) 82 | 100 80 100 . 100 Level 1 17 | . 19 . . . Level 2 . | . . . . . Level 3 . | . . . . . Level 4 . | . . . . . Level 5 . | . . . . . High Security . | . . . . . Max Security . | . . . . . Squads Dispatched 6 | . 6 . . . Investigation 4 | . 4 . . . Extermination . | . . . . . Reinforcement 2 | . 2 . . . Assault . | . . . . . Garrison . | . . . . . Intercept . | . . . . . Searches Triggered . | . . . . . Construction Impeded . | . . . . . Haulers Reinforced . | . . . . . Active Scanning Responses . | . . . . . Cargo Convoy Interrupts . | . . . . . Stealth | -11 -10 -10 -10 -9 --------- Run | Yrd Mat Min Exi Min Distress Signals 1 | . 1 . . . Communications Jammed . | . . . . . Distress Signals . | . . . . . Times Spotted 42 | . 35 . . 7 Peak Tracking Total 7 | . 5 . . 7 Tactical Retreats 4 | . 4 . . . Traps | -11 -10 -10 -10 -9 ------- Run | Yrd Mat Min Exi Min Traps Triggered 3 | . 3 . . . Indirectly . | . . . . . Trap Hack Attempts . | . . . . . Triggered . | . . . . . Disarmed . | . . . . . Reprogrammed . | . . . . . Reused . | . . . . . Traps Extracted . | . . . . . Installed . | . . . . . Triggered . | . . . . . Machines | -11 -10 -10 -10 -9 ---------- Run | Yrd Mat Min Exi Min Machines Disabled . | . . . . . Max in Single Turn . | . . . . . Machines Repaired . | . . . . . Machines Dismantled . | . . . . . Machines Sabotaged . | . . . . . Overloaded Fab Kills . | . . . . . Hacking | -11 -10 -10 -10 -9 --------- Run | Yrd Mat Min Exi Min Machines Accessed 8 | . 8 . . . Terminals 6 | . 6 . . . Fabricators . | . . . . . Repair Stations . | . . . . . Recycling Units 2 | . 2 . . . Scanalyzers . | . . . . . Garrison Access . | . . . . . Total Hacks 24 | . 24 . . . Successful 14 | . 14 . . . Failed 10 | . 10 . . . Catastrophic 1 | . 1 . . . Database Lockouts . | . . . . . Manual 15 | . 15 . . . Terminals 22 | . 22 . . . Fabricators . | . . . . . Repair Stations . | . . . . . Recycling Units 2 | . 2 . . . Scanalyzers . | . . . . . Garrison Access . | . . . . . Terminal Hacks 9 | . 9 . . . Part Schematic 2 | . 2 . . . Prototype ID Bank 2 | . 2 . . . Alert Level 1 | . 1 . . . Unreport Threat 1 | . 1 . . . Transport Status 1 | . 1 . . . Hauler Manifests 1 | . 1 . . . Registered Prototypes 1 | . 1 . . . Fabricator Hacks . | . . . . . Repair Station Hacks . | . . . . . Recycling Unit Hacks . | . . . . . Scanalyzer . | . . . . . Garrison Access Hacks . | . . . . . Unauthorized Hacks 5 | . 5 . . . Terminals 3 | . 3 . . . Assimilate 1 | . 1 . . . Botnet 2 | . 2 . . . Fabricators . | . . . . . Repair Stations . | . . . . . Recycling Units 2 | . 2 . . . Tunnel 2 | . 2 . . . Scanalyzers . | . . . . . Garrison Access . | . . . . . Data Cores Recovered . | . . . . . Used . | . . . . . Hacking Detections 6 | . 6 . . . Full Trace Events . | . . . . . Feedback Events . | . . . . . Feedback Blocked . | . . . . . Robot Schematics Acquired . | . . . . . Robots Built . | . . . . . Authchips . | . . . . . Time . | . . . . . Total Robot Build Rating . | . . . . . Part Schematics Acquired 2 | . 2 . . . Parts Built . | . . . . . Authchips . | . . . . . Time . | . . . . . Total Part Build Rating . | . . . . . Parts Repaired . | . . . . . Time . | . . . . . Parts Recycled . | . . . . . Recycled Matter . | . . . . . Retrieved Matter . | . . . . . Retrieved Components . | . . . . . Parts Scanalyzed . | . . . . . Part Schematics Acquired . | . . . . . Parts Damaged . | . . . . . Bothacking | -11 -10 -10 -10 -9 ------------ Run | Yrd Mat Min Exi Min Used RIF Installer . | . . . . . Robots Hacked . | . . . . . Non-combat . | . . . . . Combat . | . . . . . Robot Hacks Applied . | . . . . . Relay Couplers Released . | . . . . . Fabnet Peak Effective % . | . . . . . Robots Rewired . | . . . . . Allies Hacked . | . . . . . Hacks Repelled . | . . . . . Allies | -11 -10 -10 -10 -9 -------- Run | Yrd Mat Min Exi Min Total Allies . | . . . . . Largest Group . | . . . . . Highest-Rated Group . | . . . . . Highest-Rated Ally . | . . . . . Total Orders . | . . . . . Ally Attacks . | . . . . . Total Damage . | . . . . . Kills . | . . . . . Allies Corrupted . | . . . . . Allies Melted . | . . . . . Intel | -11 -10 -10 -10 -9 ------- Run | Yrd Mat Min Exi Min Robot Analysis Total . | . . . . . Derelict Logs Recovered . | . . . . . Drone Launches . | . . . . . Drone Recoveries . | . . . . . Exploration | -11 -10 -10 -10 -9 ------------- Run | Yrd Mat Min Exi Min Turns Passed 2236 | 74 1465 55 628 14 Spaces Moved 1494 | 51 877 44 522 . Core 2 | 2 . . . . Treads 2 | . 2 . . . Legs 1396 | 9 821 44 522 . Wheels 94 | 40 54 . . . Hover . | . . . . . Flight . | . . . . . Fastest Speed 50 | 50 90 120 120 . Average Speed 124 | 96 129 120 120 . Slowest Speed 190 | 120 190 120 120 . Overloaded Moves . | . . . . . Propulsion Burnouts . | . . . . . Robots Hopped . | . . . . . Cave-ins Triggered . | . . . . . Exploration Rate (%) 37 | 5 81 11 88 3 Regions Visited 4 Branch Regions 3 Pre-discovered Areas 2 | . 2 . . . Known Exits Taken 3 | . 1 1 1 . Unknown Exits Taken 1 | 1 . . . . Scrap Searched . | . . . . . Spaces Dug . | . . . . . Terrain Destroyed 11 | . 11 . . . Melee . | . . . . . Projectile . | . . . . . AOE 11 | . 11 . . . Terrain Rammed . | . . . . . Walls Destroyed . | . . . . . Machines Disabled . | . . . . . Actions | -11 -10 -10 -10 -9 --------- Run | Yrd Mat Min Exi Min Total 1732 | 70 1085 45 524 8 Wait 73 | 4 69 . . . Move 1490 | 50 876 43 521 . Hop . | . . . . . Pick Up 31 | 6 23 . 2 . Fast Attach 14 | 6 8 . . . Attach 8 | . 4 1 . 3 Detach 4 | . 3 . . 1 Swap 19 | 4 14 1 . . Drop 22 | . 21 . 1 . Fire 70 | . 66 . . 4 Melee . | . . . . . Ram . | . . . . . Kick 1 | . 1 . . . Crush . | . . . . . Escape Stasis . | . . . . . Rewire . | . . . . . Trap . | . . . . . Miscellaneous . | . . . . . Route ------- -11/Scrapyard -10/Materials (discovered 3 exits: *Mat x2 / *Min) -10/Mines -10/Exiles (discovered 2 exits: *Min x2) -9/Mines History --------- Turn | Location | Event 19 | -11/Scrapyard | Discovered new exit (range 15) 75 | -11/Scrapyard | Entered Materials 318 | -10/Materials | Build established: Mutant 501 | -10/Materials | Core integrity fell below 50% 544 | -10/Materials | Discovered new exit (range 4) 811 | -10/Materials | Discovered new exit (range 10) 1003 | -10/Materials | Discovered new exit (range 13) 1029 | -10/Materials | Identified exit to Mines 1423 | -10/Materials | Identified exit to Materials 1540 | -10/Materials | Entered Mines 1541 | -10/Mines | Assembled infested the area 1590 | -10/Mines | Discovered new exit (range 5) 1593 | -10/Mines | Identified exit to Exiles 1595 | -10/Mines | Entered Exiles 1611 | -10/Exiles | Discovered new exit (range 15) 1628 | -10/Exiles | Met 8R-AWN 1651 | -10/Exiles | Identified exit to Mines 1695 | -10/Exiles | Met EX-HEX 1836 | -10/Exiles | Met EX-DEC 1865 | -10/Exiles | Visited The Gauntlet 2052 | -10/Exiles | Met EX-BIN 2214 | -10/Exiles | Discovered exit to Mines (range 10) 2223 | -10/Exiles | Entered Mines 2227 | -9/Mines | Core integrity fell below 20% 2237 | -9/Mines | Destroyed by S-10 Pest with Light Assault Rifle Last Messages --------------- Now, I'll admit there could be side effects, but if you're willing to participate in the trials you can have one of our prototypes. How's that for a sweet deal? 02054_ EX-BIN: "Please do it. The faster we get more data and tweak this thing to perfection, the faster I can get back to my spacelab designs." 02084_ System corrupted: Matter fused (-10). 02116_ System corrupted: Matter fused (-8). 02156_ System corrupted: Substantial component data lost. 02169_ Extracted 18 matter. 02189_ Dropped Lrg. Battery. 02191_ Extracted 4 energy. 02192_ Acquired Hcp. Battery. 02194_ Extracted 4 energy. 02214_ EXIT=FOUND: MINES LOCATION=MINES GOAL=ESCAPE 02223_ Discarded Signal Interpreter. 02225_ G-34 Mercenary destroyed. 02231_ Aluminum Leg destroyed. 02232_ Lgt. EM Pulse Cannon destroyed. Map ----- +----------------------------------------------------+ | ???????????????????????????????????????????????? | | ???????????????????????????????????????????????? | | ???????????????????????????????????????????????? | | ???????????????????????????????????????????????? | | ???????????????????????????????????????????????? | | ???????????????????????????????????????????????? | | ???????????????????????????????????????????????? | | ???????????????????????????????????????????????? | | ???????????????????????????????????????????????? | | ???????????????????????????????????????????????? | | ???????????????????????????????????????????????? | | ???????????????????????????????????????????????? | | ???????????????????????????????????????????????? | | ???????????????????????????????????????????????? | | ???????????????????????????????????????????????? | | ???????????????????????????????????????????????? | | ???????????????????????????????????????????????? | | ????????????????????##########?????????????????? | | ????????????????????# #?????????????????? | | ????????????????????# """ #?????????????????? | | ????????????????????# """ #?????????????????? | | ????????????????????# """g #?????????????????? | | ?????????????????#### [%=#?????????????????? | | ????????????????## ss g #?????????????????? | | ????????????????# ss #?????????????????? | | ????????????????????# @ #?????????????????? | | ????????????????????# #?????????????????? | | ????????????????????##########?????????????????? | | ???????????????????????????????????????????????? | | ???????????????????????????????????????????????? | | ???????????????????????????????????????????????? | | ???????????????????????????????????????????????? | | ???????????????????????????????????????????????? | | ???????????????????????????????????????????????? | | ???????????????????????????????????????????????? | | ???????????????????????????????????????????????? | | ???????????????????????????????????????????????? | | ???????????????????????????????????????????????? | | ???????????????????????????????????????????????? | | ???????????????????????????????????????????????? | | ???????????????????????????????????????????????? | | ???????????????????????????????????????????????? | | ???????????????????????????????????????????????? | | | | | | | | | | | | | | | +----------------------------------------------------+ Best States ------------- Heat Dissipation 35 Energy Generation 10 Energy Capacity 250 Matter Stores 300 Matter Capacity 300 Sight Range 16 Robot Scan Range 14 Terrain Scan Density 10 Evasion (%) 55 Targeting Accuracy 6 Recoil Reduction 1 Item Schematics ----------------- Signal Interpreter | -10/Materials | Hacked Med. Storage Unit | -10/Materials | Hacked Robot Schematics ------------------ None Fabricated ------------ Nothing Alien Tech Used ----------------- None Achievements -------------- None Challenges ------------ None Game ------ Seed ClaymoresAutogunChainsword Manual? 0 Play Time 00:25:37 Cumulative 129.8 hours Start 2024.10.13 @ 21:04:07 End 2024.10.13 @ 21:29:03 Sessions 1 Manual Loads 0 Difficulty Rogue Special Mode None Game No. 32 Rogue 32 Adventurer 0 Explorer 0 Win Type - Total 1 Types 1/0/0/0/0/0/0/0/0 Lore% 39 Gallery% 61 Achievement% 48 Wizard Run 0 Options --------- Layout 0 ASCII 0 Keyboard 1 Movement Numpad Keybinds 0 Fullscreen 1 Font 18/SmallcapsGlow Map View 76x50 Zoom Use 2% Tactical HUD 1 Map Filters NONE Filters NONE Steam 1 RUN: 97011f78-2435-4ae6-8800-2594c4c022ce